lending/lending_fUSD_20250114
["ID","MTS","AMOUNT","RATE_DAILY","PERIOD"]
[348926191,1736874645383,-500.0,0.00010247,2]
[348926192,1736874645393,-500.0,0.00010247,2]
[348926193,1736874645403,-500.0,0.00010247,2]
[348926194,1736874645413,-500.0,0.00010247,2]
[348926195,1736874645615,-500.0,0.00010247,2]
[348926196,1736874645627,-500.0,0.00010247,2]
[348926197,1736874645637,-500.0,0.00010247,2]
[348926198,1736874645648,-500.0,0.00010247,2]
[348926199,1736874645659,-500.0,0.00010247,2]
[348926200,1736874645669,-500.0,0.00010247,2]
[348926201,1736874645680,-500.0,0.00010247,2]
[348926202,1736874645690,-469.59766745,0.00010247,2]
[348926203,1736874645965,-500.0,9.963e-05,2]
[348926204,1736874645975,-30.40233255,0.00010247,2]
[348926205,1736874645984,-500.0,0.00010247,2]
[348926206,1736874645994,-655.28,0.00010247,2]
[348926208,1736874646004,-500.0,0.00010247,2]
[348926210,1736874646015,-500.0,0.00010247,2]
[348926212,1736874646025,-649.67260871,0.00010247,2]
[348926214,1736874646038,-500.0,0.00010247,2]
[348926216,1736874646049,-500.0,0.00010247,2]
[348926218,1736874646058,-500.0,0.00010247,2]
[348926220,1736874646068,-500.0,0.00010247,2]
[348926222,1736874646077,-500.0,0.00010247,2]
[348926224,1736874646089,-500.0,0.00010247,2]
[348926226,1736874646099,-500.0,0.00010247,2]
[348926229,1736874646109,-500.0,0.00010247,2]
[348926231,1736874646121,-500.0,0.00010247,2]
[348926233,1736874646131,-500.0,0.00010247,2]
[348926235,1736874646141,-500.0,0.00010247,2]
[348926236,1736874646151,-500.0,0.00010247,2]
[348926238,1736874646160,-500.0,0.00010247,2]
[348926240,1736874646170,-500.0,0.00010247,2]
[348926243,1736874646179,-500.0,0.00010247,2]
[348926245,1736874646188,-500.0,0.00010247,2]
[348926247,1736874646199,-500.0,0.00010247,2]
[348926249,1736874646208,-915.02,0.00010247,2]
[348926252,1736874646218,-500.0,0.00010247,2]
[348926255,1736874646227,-500.0,0.00010247,2]
[348926257,1736874646236,-500.0,0.00010247,2]
[348926259,1736874646246,-500.0,0.00010247,2]
[348926261,1736874646255,-500.0,0.00010247,2]
[348926263,1736874646264,-500.0,0.00010247,2]
[348926265,1736874646273,-509.36315262,0.00010247,2]
[348926267,1736874646282,-500.0,0.00010247,2]
[348926269,1736874646291,-500.0,0.00010247,2]
[348926271,1736874646301,-500.0,0.00010247,2]
[348926273,1736874646311,-423.33823529,0.00010247,2]
[348926275,1736874646320,-537.6193508,0.00010247,2]
[348926277,1736874646333,-254.9106492,0.00010247,2]
[348926279,1736874646342,-47.01132239,0.00010247,2]
[348926281,1736874646353,-452.98867761,0.00010247,2]
[348926283,1736874646363,-111.71031029,0.00010247,2]
[348926286,1736874646375,-388.28968971,0.00010247,2]
[348926288,1736874646384,-735.394565,0.00010247,2]
[348926290,1736874646395,-500.0,0.00010247,2]
[348926291,1736874646406,-500.0,0.00010247,2]
[348926293,1736874646417,-500.0,0.00010247,2]
[348926295,1736874646426,-500.0,0.00010247,2]
[348926297,1736874646435,-500.0,0.00010247,2]
[348926299,1736874646445,-500.0,0.00010247,2]
[348926301,1736874646454,-500.0,0.00010247,2]
[348926303,1736874646463,-500.0,0.00010247,2]
[348926305,1736874646473,-500.0,0.00010247,2]
[348926307,1736874646482,-500.0,0.00010247,2]
[348926309,1736874646492,-500.0,0.00010247,2]
[348926311,1736874646501,-2410.71,0.00010247,2]
[348926314,1736874646510,-767.859734,0.00010247,2]
[348926316,1736874646520,-500.0,0.00010247,2]
[348926318,1736874646529,-500.0,0.00010247,2]
[348926320,1736874646538,-500.0,0.00010247,2]
[348926322,1736874646548,-500.0,0.00010247,2]
[348926324,1736874646557,-500.0,0.00010247,2]
[348926326,1736874646567,-500.0,0.00010247,2]
[348926328,1736874646576,-841.88,0.00010247,2]
[348926330,1736874646585,-500.0,0.00010247,2]
[348926332,1736874646594,-500.51172738,0.00010247,2]
[348926334,1736874646604,-500.0,0.00010247,2]
[348926335,1736874646613,-206.79426156,0.00010247,2]
[348926337,1736874646623,-500.0,0.00010247,2]
[348926339,1736874646632,-500.0,0.00010247,2]
[348926341,1736874646642,-500.0,0.00010247,2]
[348926344,1736874646651,-500.0,0.00010247,2]
[348926346,1736874646661,-502.69811503,0.00010247,2]
[348926348,1736874646671,-500.0,0.00010247,2]
[348926350,1736874646681,-500.0,0.00010247,2]
[348926352,1736874646690,-500.0,0.00010247,2]
[348926354,1736874646701,-500.0,0.00010247,2]
[348926356,1736874646712,-500.0,0.00010247,2]
[348926358,1736874646721,-500.0,0.00010247,2]
[348926360,1736874646731,-500.0,0.00010247,2]
[348926362,1736874646740,-500.0,0.00010247,2]
[348926364,1736874646754,-337.27958653,0.00010247,2]
[348926366,1736874646765,-500.0,0.00010247,2]
[348926368,1736874646775,-500.0,0.00010247,2]
[348926370,1736874646785,-505.77458135,0.00010247,2]
[348926372,1736874646794,-164.89892478,0.00010247,2]
[348926375,1736874646809,-335.10107522,0.00010247,2]
[348926377,1736874646818,-175.78925908,0.00010247,2]
[348926379,1736874646830,-324.21074092,0.00010247,2]
[348926380,1736874646839,-500.0,0.00010247,2]
[348926382,1736874646849,-500.0,0.00010247,2]
[348926384,1736874646858,-1468.81243974,0.00010247,2]
[348926386,1736874646870,-1380.01756026,0.00010247,2]
[348926387,1736874646880,-500.0,0.00010247,2]
[348926388,1736874646893,-500.0,0.00010247,2]
[348926389,1736874646903,-500.0,0.00010247,2]
[348926390,1736874646912,-500.0,0.00010247,2]
[348926391,1736874646922,-500.0,0.00010247,2]
[348926392,1736874646932,-500.0,0.00010247,2]
[348926393,1736874646941,-500.0,0.00010247,2]
[348926394,1736874646951,-500.0,0.00010247,2]
[348926395,1736874646961,-325.34418552,0.00010247,2]
[348926396,1736874646970,-500.0,0.00010247,2]
[348926397,1736874646979,-500.0,0.00010247,2]
[348926398,1736874646989,-500.0,0.00010247,2]
[348926399,1736874646998,-2878.74,0.00010247,2]
[348926400,1736874647007,-500.0,0.00010247,2]
[348926401,1736874647016,-500.0,0.00010247,2]
[348926402,1736874647026,-500.0,0.00010247,2]
[348926403,1736874647035,-500.0,0.00010247,2]
[348926404,1736874647047,-2003.62006649,0.00010247,2]
[348926405,1736874647058,-269.80993351,0.00010247,2]
[348926406,1736874647067,-7.39906649,0.00010247,2]
[348926407,1736874647078,-340.39927,0.00010247,2]
[348926408,1736874647091,-152.20166351,0.00010247,2]
[348926409,1736874647101,-366.22233649,0.00010247,2]
[348926410,1736874647112,-137.19533008,0.00010247,2]
[348926411,1736874647121,-410.81419568,0.00010247,2]
[348926412,1736874647132,-89.18580432,0.00010247,2]
[348926413,1736874647142,-207.85849523,0.00010247,2]
[348926414,1736874647152,-292.14150477,0.00010247,2]
[348926415,1736874647162,-500.0,0.00010247,2]
[348926416,1736874647171,-500.0,0.00010247,2]
[348926417,1736874647180,-505.84222083,0.00010247,2]
[348926418,1736874647189,-500.0,0.00010247,2]
[348926419,1736874647200,-500.0,0.00010247,2]
[348926420,1736874647209,-500.0,0.00010247,2]
[348926421,1736874647219,-500.0,0.00010247,2]
[348926422,1736874647228,-204.71181089,0.00010247,2]
[348926423,1736874647237,-500.0,0.00010247,2]
[348926424,1736874647246,-1853.63,0.00010247,2]
[348926425,1736874647254,-500.0,0.00010247,2]
[348926426,1736874647263,-500.0,0.00010247,2]
[348926427,1736874647272,-500.0,0.00010247,2]
[348926428,1736874647282,-500.0,0.00010247,2]
[348926429,1736874647290,-500.0,0.00010247,2]
[348926430,1736874647299,-500.0,0.00010247,2]
[348926431,1736874647308,-500.0,0.00010247,2]
[348926432,1736874647317,-500.0,0.00010247,2]
[348926433,1736874647326,-500.0,0.00010247,2]
[348926434,1736874647336,-500.0,0.00010247,2]
[348926435,1736874647345,-500.0,0.00010247,2]
[348926436,1736874647355,-500.0,0.00010247,2]
[348926437,1736874647364,-500.0,0.00010247,2]
[348926438,1736874647373,-861.59,0.00010247,2]
[348926439,1736874647383,-500.0,0.00010247,2]
[348926440,1736874647392,-500.0,0.00010247,2]
[348926441,1736874647403,-536.63,0.00010247,2]
[348926442,1736874647413,-500.0,0.00010247,2]
[348926443,1736874647423,-500.0,0.00010247,2]
[348926444,1736874647432,-500.0,0.00010247,2]
[348926445,1736874647442,-500.0,0.00010247,2]
[348926446,1736874647453,-500.0,0.00010247,2]
[348926447,1736874647463,-500.0,0.00010247,2]
[348926448,1736874647472,-500.0,0.00010247,2]
[348926449,1736874647482,-363.23784596,0.00010247,2]
[348926450,1736874647530,-136.76215404,0.00010247,2]
[348926451,1736874647539,-346.09684595,0.00010247,2]
[348926452,1736874647550,-254.03913749,0.00010247,2]
[348926453,1736874647559,-263.32086251,0.00010247,2]
[348926454,1736874647570,-236.67913749,0.00010247,2]
[348926455,1736874647580,-136.05086241,0.00010247,2]
[348926456,1736874647591,-253.97,0.00010247,2]
[348926457,1736874647602,-109.97913759,0.00010247,2]
[348926458,1736874647611,-264.13086241,0.00010247,2]
[348926459,1736874647622,-235.86913759,0.00010247,2]
[348926460,1736874647632,-100.74086241,0.00010247,2]
[348926461,1736874647643,-399.25913759,0.00010247,2]
[348926462,1736874647652,-4.37086241,0.00010247,2]
[348926463,1736874647663,-251.24,0.00010247,2]
[348926464,1736874647675,-244.38913759,0.00010247,2]
[348926465,1736874647685,-203.73694794,0.00010247,2]
[348926466,1736874647696,-375.26305206,0.00010247,2]
[348926467,1736874647705,-500.0,0.00010247,2]
[348926468,1736874647715,-500.0,0.00010247,2]
[348926469,1736874647724,-500.0,0.00010247,2]
[348926470,1736874647734,-500.0,0.00010247,2]
[348926471,1736874647743,-506.28537832,0.00010247,2]
[348926472,1736874647752,-500.0,0.00010247,2]
[348926473,1736874647762,-500.0,0.00010247,2]
[348926474,1736874647771,-500.0,0.00010247,2]
[348926475,1736874647839,-500.0,0.00010247,2]
[348926476,1736874647849,-500.0,0.00010247,2]
[348926477,1736874647858,-500.0,0.00010247,2]
[348926478,1736874647867,-500.0,0.00010248,2]
[348926479,1736874647877,-1596.93,0.00010248,2]
[348926480,1736874647886,-500.0,0.00010248,2]
[348926481,1736874647895,-569.76,0.00010248,2]
[348926482,1736874647905,-950.37,0.00010248,2]
[348926483,1736874647914,-500.0,0.00010248,2]
[348926484,1736874647923,-667.27,0.00010248,2]
[348926485,1736874647932,-500.0,0.00010249,2]
[348926486,1736874647941,-1566.81,0.00010249,2]
[348926487,1736874647951,-555.75,0.00010249,2]
[348926488,1736874647960,-852.0,0.00010249,2]
[348926489,1736874647969,-500.0,0.00010249,2]
[348926490,1736874647978,-500.0,0.00010249,2]
[348926491,1736874647987,-500.0,0.00010249,2]
[348926492,1736874647996,-777.15,0.00010249,2]
[348926493,1736874648005,-500.0,0.00010249,2]
[348926494,1736874648014,-500.0,0.00010249,2]
[348926495,1736874648023,-668.22,0.00010249,2]
[348926496,1736874648033,-500.0,0.00010249,2]
[348926497,1736874648045,-500.0,0.00010249,2]
[348926498,1736874648056,-500.0,0.00010249,2]
[348926499,1736874648066,-500.0,0.00010249,2]
[348926500,1736874648075,-579.09,0.00010249,2]
[348926501,1736874648086,-500.0,0.00010249,2]
[348926502,1736874648096,-961.72,0.00010249,2]
[348926503,1736874648105,-818.85,0.00010249,2]
[348926504,1736874648116,-1665.38,0.00010249,2]
[348926505,1736874648125,-500.0,0.00010249,2]
[348926506,1736874648135,-1000.0,0.00010249,2]
[348926507,1736874648145,-784.12,0.00010249,2]
[348926508,1736874648154,-500.0,0.00010249,2]
[348926509,1736874648163,-500.0,0.00010273,2]
[348926510,1736874648173,-500.0,0.00010273,2]
[348926511,1736874648183,-382.5437104,0.00010273,2]
[348926512,1736874648195,-118.04865776,0.00010273,2]
[348926513,1736874648204,-151.89087233,0.00010273,2]
[348926514,1736874648214,-199.7524245,0.00010273,2]
[348926515,1736874648224,-152.89499738,0.00010273,2]
[348926516,1736874648233,-862.70120168,0.00010339,2]
[348926517,1736874648242,-1000.0,0.00010411,2]
[348926518,1736874648251,-1000.0,0.00010411,2]
[348926519,1736874648261,-1000.0,0.00010411,2]
[348926520,1736874648270,-1000.0,0.00010411,2]
[348926521,1736874648280,-1000.0,0.00010411,2]
[348926522,1736874648289,-1000.0,0.00010411,2]
[348926523,1736874648298,-1000.0,0.00010411,2]
[348926524,1736874648307,-1000.0,0.00010411,2]
[348926525,1736874648317,-990.0,0.00010411,2]
[348926526,1736874648327,-161.79765904,0.00010411,2]
[348926527,1736874648336,-1128.11,0.00010422,2]
[348926528,1736874648346,-3896.0,0.00010445,2]
[348926529,1736874648356,-150.0,0.00010445,2]
[348926530,1736874648366,-165.34,0.00010472,2]
[348926531,1736874648376,-862.70120168,0.00010498,2]
[348926532,1736874648386,-500.0,0.0001051,2]
[348926533,1736874648396,-500.0,0.00010511,2]
[348926534,1736874648408,-500.0,0.00010511,2]
[348926535,1736874648417,-500.0,0.00010511,2]
[348926536,1736874648427,-500.0,0.00010511,2]
[348926537,1736874648437,-500.0,0.00010511,2]
[348926538,1736874648447,-500.0,0.00010511,2]
[348926539,1736874648457,-500.0,0.00010511,2]
[348926540,1736874648467,-500.0,0.00010511,2]
[348926541,1736874648476,-500.0,0.00010511,2]
[348926542,1736874648486,-500.0,0.00010511,2]
[348926543,1736874648495,-500.0,0.00010511,2]
[348926544,1736874648505,-500.0,0.00010511,2]
[348926545,1736874648515,-500.0,0.00010511,2]
[348926546,1736874648525,-500.0,0.00010511,2]
[348926547,1736874648534,-500.0,0.00010511,2]
[348926548,1736874648543,-500.0,0.00010511,2]
[348926549,1736874648553,-500.0,0.00010511,2]
[348926550,1736874648562,-500.0,0.00010511,2]
[348926551,1736874648571,-500.0,0.00010511,2]
[348926552,1736874648581,-500.0,0.00010511,2]
[348926553,1736874648591,-3407.14,0.00010511,2]
[348926554,1736874648601,-605.96,0.00010511,2]
[348926555,1736874648610,-500.0,0.00010511,2]
[348926556,1736874648619,-502.99251895,0.00010511,2]
[348926557,1736874648629,-500.0,0.00010511,2]
[348926558,1736874648638,-500.0,0.00010511,2]
[348926559,1736874648648,-561.01,0.00010511,2]
[348926560,1736874648658,-508.87,0.00010511,2]
[348926561,1736874648667,-500.0,0.00010511,2]
[348926562,1736874648676,-500.0,0.00010511,2]
[348926563,1736874648685,-500.0,0.00010511,2]
[348926564,1736874648695,-500.0,0.00010511,2]
[348926565,1736874648705,-500.0,0.00010511,2]
[348926566,1736874648714,-607.21,0.00010511,2]
[348926567,1736874648724,-500.0,0.00010511,2]
[348926568,1736874648733,-500.0,0.00010511,2]
[348926569,1736874648742,-513.72527152,0.00010511,2]
[348926570,1736874648752,-500.0,0.00010511,2]
[348926571,1736874648761,-500.0,0.00010511,2]
[348926572,1736874648771,-500.0,0.00010511,2]
[348926573,1736874648780,-500.0,0.00010511,2]
[348926574,1736874648789,-917.35,0.00010511,2]
[348926575,1736874648798,-500.0,0.00010511,2]
[348926576,1736874648808,-500.0,0.00010511,2]
[348926577,1736874648817,-500.0,0.00010511,2]
[348926578,1736874648826,-989.63,0.00010511,2]
[348926579,1736874648836,-500.0,0.00010511,2]
[348926580,1736874648845,-500.0,0.00010511,2]
[348926581,1736874648854,-500.0,0.00010511,2]
[348926582,1736874648863,-500.0,0.00010511,2]
[348926583,1736874648873,-726.11,0.00010511,2]
[348926584,1736874648882,-500.0,0.00010511,2]
[348926585,1736874648891,-500.0,0.00010511,2]
[348926586,1736874648900,-501.39,0.00010511,2]
[348926587,1736874648909,-500.0,0.00010511,2]
[348926588,1736874648918,-500.0,0.00010511,2]
[348926589,1736874648928,-1861.09,0.00010511,2]
[348926590,1736874648937,-500.0,0.00010511,2]
[348926591,1736874648947,-500.0,0.00010511,2]
[348926592,1736874648956,-500.0,0.00010511,2]
[348926593,1736874648965,-1031.69,0.00010511,2]
[348926594,1736874648974,-500.0,0.00010511,2]
[348926595,1736874648983,-500.0,0.00010511,2]
[348926596,1736874648993,-500.0,0.00010511,2]
[348926597,1736874649002,-2144.09,0.00010511,2]
[348926598,1736874649011,-500.0,0.00010511,2]
[348926599,1736874649020,-500.0,0.00010511,2]
[348926600,1736874649030,-500.0,0.00010511,2]
[348926601,1736874649041,-2297.71,0.00010511,2]
[348926602,1736874649052,-500.0,0.00010511,2]
[348926603,1736874649061,-569.3,0.00010511,2]
[348926604,1736874649070,-500.0,0.00010511,2]
[348926605,1736874649079,-500.0,0.00010511,2]
[348926606,1736874649090,-500.0,0.00010511,2]
[348926607,1736874649099,-500.0,0.00010511,2]
[348926608,1736874649108,-500.0,0.00010511,2]
[348926609,1736874649117,-500.0,0.00010511,2]
[348926610,1736874649128,-1091.36,0.00010511,2]
[348926611,1736874649138,-500.0,0.00010511,2]
[348926612,1736874649147,-606.9,0.00010511,2]
[348926613,1736874649158,-500.0,0.00010511,2]
[348926614,1736874649167,-500.0,0.00010511,2]
[348926615,1736874649177,-1243.37,0.00010511,2]
[348926616,1736874649187,-1821.82,0.00010511,2]
[348926617,1736874649198,-613.48,0.00010511,2]
[348926618,1736874649208,-501.3,0.00010511,2]
[348926619,1736874649218,-2499.84,0.00010511,2]
[348926620,1736874649228,-817.81,0.00010511,2]
[348926621,1736874649237,-500.0,0.00010511,2]
[348926622,1736874649247,-726.07,0.00010511,2]
[348926623,1736874649257,-524.12,0.00010511,2]
[348926624,1736874649267,-1768.11,0.00010511,2]
[348926625,1736874649277,-500.0,0.00010511,2]
[348926626,1736874649286,-1022.18,0.00010511,2]
[348926627,1736874649296,-500.0,0.00010511,2]
[348926628,1736874649306,-500.0,0.00010511,2]
[348926629,1736874649315,-634.66,0.00010511,2]
[348926630,1736874649325,-1118.55,0.00010511,2]
[348926631,1736874649335,-500.0,0.00010511,2]
[348926632,1736874649345,-500.0,0.00010511,2]
[348926633,1736874649355,-500.0,0.00010511,2]
[348926634,1736874649365,-1461.49,0.00010511,2]
[348926635,1736874649376,-523.3,0.00010511,2]
[348926636,1736874649386,-500.0,0.00010511,2]
[348926637,1736874649396,-835.63,0.00010511,2]
[348926638,1736874649406,-500.0,0.00010512,2]
[348926639,1736874649417,-353.97745826,0.00010512,2]
[348926640,1736874649427,-500.0,0.00010512,2]
[348926641,1736874649438,-500.0,0.00010512,2]
[348926642,1736874649448,-172.73073355,0.00010512,2]
[348926643,1736874649458,-500.0,0.00010512,2]
[348926644,1736874649468,-500.0,0.00010512,2]
[348926645,1736874649478,-500.0,0.00010512,2]
[348926646,1736874649488,-500.0,0.00010512,2]
[348926647,1736874649498,-530.16551768,0.00010512,2]
[348926648,1736874649508,-500.0,0.00010512,2]
[348926649,1736874649518,-500.0,0.00010512,2]
[348926650,1736874649528,-500.0,0.00010512,2]
[348926651,1736874649538,-500.0,0.00010512,2]
[348926652,1736874649548,-504.19791603,0.00010512,2]
[348926653,1736874649557,-500.0,0.00010512,2]
[348926654,1736874649566,-500.0,0.00010512,2]
[348926655,1736874649577,-500.0,0.00010512,2]
[348926656,1736874649586,-500.0,0.00010512,2]
[348926657,1736874649596,-500.0,0.00010512,2]
[348926658,1736874649606,-500.0,0.00010512,2]
[348926659,1736874649615,-500.0,0.00010512,2]
[348926660,1736874649624,-500.0,0.00010512,2]
[348926661,1736874649634,-500.0,0.00010512,2]
[348926662,1736874649644,-505.13729647,0.00010512,2]
[348926663,1736874649654,-506.88662652,0.00010512,2]
[348926664,1736874649664,-502.0638164,0.00010512,2]
[348926665,1736874649673,-500.0,0.00010512,2]
[348926666,1736874649683,-504.95834196,0.00010512,2]
[348926667,1736874649692,-500.0,0.00010512,2]
[348926668,1736874649702,-500.0,0.00010512,2]
[348926669,1736874649711,-501.25178878,0.00010512,2]
[348926670,1736874649720,-500.0,0.00010512,2]
[348926671,1736874649730,-500.0,0.00010512,2]
[348926672,1736874649740,-500.0,0.00010512,2]
[348926673,1736874649750,-500.0,0.00010512,2]
[348926674,1736874649759,-500.0,0.00010512,2]
[348926675,1736874649769,-618.36793001,0.00010512,2]
[348926676,1736874649780,-500.0,0.00010512,2]
[348926677,1736874649791,-500.0,0.00010512,2]
[348926678,1736874649801,-500.0,0.00010512,2]
[348926679,1736874649810,-500.0,0.00010512,2]
[348926680,1736874649819,-500.0,0.00010512,2]
[348926681,1736874649829,-500.0,0.00010512,2]
[348926682,1736874649839,-500.0,0.00010512,2]
[348926683,1736874649850,-500.0,0.00010512,2]
[348926684,1736874649859,-500.0,0.00010512,2]
[348926685,1736874649869,-500.0,0.00010512,2]
[348926686,1736874649879,-500.0,0.00010512,2]
[348926687,1736874649889,-502.63980453,0.00010512,2]
[348926688,1736874649899,-500.0,0.00010512,2]
[348926689,1736874649910,-769.09,0.00010512,2]
[348926690,1736874649920,-571.9,0.00010512,2]
[348926691,1736874649930,-931.22,0.00010512,2]
[348926692,1736874649940,-1164.61,0.00010513,2]
[348926693,1736874649951,-669.9,0.00010513,2]
[348926694,1736874649960,-1012.55,0.00010515,2]
[348926695,1736874649970,-1395.8,0.00010515,2]
[348926696,1736874649980,-4210.37,0.00010515,2]
[348926697,1736874649990,-422.16899709,0.00010515,2]
[348926698,1736874650001,-553.2,0.00010515,2]
[348926699,1736874650011,-904.43,0.00010515,2]
[348926700,1736874650021,-646.71,0.00010515,2]
[348926701,1736874650031,-1140.74,0.00010515,2]
[348926702,1736874650047,-570.49,0.00010515,2]
[348926703,1736874650060,-2114.74,0.00010515,2]
[348926704,1736874650070,-782.74,0.00010515,2]
[348926705,1736874650080,-500.0,0.00010515,2]
[348926706,1736874650098,-1263.13,0.00010515,2]
[348926707,1736874650113,-946.28,0.00010515,2]
[348926708,1736874650130,-428.73539895,0.00010521,2]
[348926709,1736874650140,-536.73,0.00010521,2]
[348926710,1736874650151,-500.0,0.00010521,2]
[348926711,1736874650162,-500.0,0.00010521,2]
[348926712,1736874650172,-500.0,0.00010521,2]
[348926713,1736874650182,-500.0,0.00010521,2]
[348926714,1736874650191,-500.0,0.00010521,2]
[348926715,1736874650203,-627.16,0.00010521,2]
[348926716,1736874650214,-587.65320664,0.00010521,2]
[348926717,1736874650223,-500.0,0.00010521,2]
[348926718,1736874650233,-578.21895945,0.00010521,2]
[348926719,1736874650244,-329.71274499,0.00010521,2]
[348926720,1736874650254,-500.0,0.00010521,2]
[348926721,1736874650264,-500.0,0.00010521,2]
[348926722,1736874650282,-620.5,0.00010521,2]
[348926723,1736874650292,-500.0,0.00010521,2]
[348926724,1736874650302,-500.0,0.00010521,2]
[348926725,1736874650312,-500.0,0.00010521,2]
[348926726,1736874650323,-261.58407727,0.00010521,2]
[348926727,1736874650333,-500.0,0.00010521,2]
[348926728,1736874650343,-500.0,0.00010521,2]
[348926729,1736874650352,-500.0,0.00010521,2]
[348926730,1736874650363,-516.48,0.00010521,2]
[348926731,1736874650373,-500.0,0.00010521,2]
[348926732,1736874650383,-500.0,0.00010521,2]
[348926733,1736874650393,-500.0,0.00010521,2]
[348926734,1736874650403,-506.69563036,0.00010521,2]
[348926735,1736874650414,-500.0,0.00010521,2]
[348926736,1736874650426,-500.0,0.00010521,2]
[348926737,1736874650437,-500.0,0.00010521,2]
[348926738,1736874650448,-500.0,0.00010521,2]
[348926739,1736874650459,-500.0,0.00010521,2]
[348926740,1736874650470,-500.0,0.00010521,2]
[348926741,1736874650481,-500.0,0.00010521,2]
[348926742,1736874650493,-500.0,0.00010521,2]
[348926743,1736874650503,-500.0,0.00010521,2]
[348926744,1736874650513,-500.0,0.00010521,2]
[348926745,1736874650523,-500.0,0.00010521,2]
[348926746,1736874650533,-500.0,0.00010521,2]
[348926747,1736874650543,-500.0,0.00010521,2]
[348926748,1736874650553,-218.29873743,0.00010521,2]
[348926749,1736874650564,-500.0,0.00010521,2]
[348926750,1736874650574,-515.74749608,0.00010521,2]
[348926751,1736874650584,-500.0,0.00010521,2]
[348926752,1736874650594,-500.0,0.00010521,2]
[348926753,1736874650604,-500.0,0.00010521,2]
[348926754,1736874650615,-500.0,0.00010521,2]
[348926755,1736874650625,-500.0,0.00010521,2]
[348926756,1736874650636,-480.53105068,0.00010521,2]
[348926757,1736874650646,-500.0,0.00010521,2]
[348926758,1736874650655,-500.0,0.00010521,2]
[348926759,1736874650666,-500.0,0.00010521,2]
[348926760,1736874650676,-500.0,0.00010521,2]
[348926761,1736874650686,-500.0,0.00010521,2]
[348926762,1736874650696,-500.0,0.00010521,2]
[348926763,1736874650707,-655.28,0.00010521,2]
[348926764,1736874650717,-500.0,0.00010521,2]
[348926765,1736874650727,-500.0,0.00010521,2]
[348926766,1736874650737,-500.0,0.00010521,2]
[348926767,1736874650748,-500.0,0.00010521,2]
[348926768,1736874650758,-500.0,0.00010521,2]
[348926769,1736874650767,-500.0,0.00010521,2]
[348926770,1736874650778,-500.0,0.00010521,2]
[348926771,1736874650788,-500.0,0.00010521,2]
[348926772,1736874650798,-500.0,0.00010521,2]
[348926773,1736874650808,-500.0,0.00010521,2]
[348926774,1736874650818,-500.0,0.00010521,2]
[348926775,1736874650828,-500.0,0.00010521,2]
[348926776,1736874650838,-500.0,0.00010521,2]
[348926777,1736874650849,-507.47424146,0.00010521,2]
[348926778,1736874650859,-500.0,0.00010521,2]
[348926779,1736874650870,-500.0,0.00010521,2]
[348926780,1736874650881,-915.02,0.00010521,2]
[348926781,1736874650891,-350.94602522,0.00010521,2]
[348926782,1736874650902,-500.0,0.00010521,2]